[Event "Early-Titled-Tuesday-Blitz-September-05-2023"]
[Site "Chess.com"]
[Date "2023.09.05"]
[Round "4"]
[White "ZuraTqebuchava"]
[Black "Vaibhavraut99"]
[Result "0-1"]
[WhiteElo "2267"]
[BlackElo "2571"]
[TimeControl "180+1"]
[EndTime "8:37:43 PDT"]
[Termination "Vaibhavraut99 won on time"]

1. e4 {[%clk 0:03:00]} 1... c5 {[%clk 0:02:57.8]} 2. Nf3 {[%clk 0:02:58.2]} 2...
d6 {[%clk 0:02:57.5]} 3. Bb5+ {[%clk 0:02:48.6]} 3... Bd7 {[%clk 0:02:55.8]} 4.
Bxd7+ {[%clk 0:02:48.1]} 4... Nxd7 {[%clk 0:02:56]} 5. O-O {[%clk 0:02:47.5]}
5... Ngf6 {[%clk 0:02:55.8]} 6. Re1 {[%clk 0:02:47.3]} 6... e5 {[%clk
0:02:55.5]} 7. c3 {[%clk 0:02:47.1]} 7... Be7 {[%clk 0:02:54.5]} 8. d4 {[%clk
0:02:46.7]} 8... cxd4 {[%clk 0:02:54.3]} 9. cxd4 {[%clk 0:02:46.6]} 9... O-O
{[%clk 0:02:55.2]} 10. Bg5 {[%clk 0:02:44]} 10... h6 {[%clk 0:02:51.8]} 11. Bh4
{[%clk 0:02:39.4]} 11... Re8 {[%clk 0:02:49.7]} 12. dxe5 {[%clk 0:02:37.8]}
12... Nxe5 {[%clk 0:02:47.9]} 13. Nxe5 {[%clk 0:02:36.9]} 13... dxe5 {[%clk
0:02:48]} 14. Bxf6 {[%clk 0:02:35.3]} 14... Bxf6 {[%clk 0:02:45.9]} 15. Nc3
{[%clk 0:02:33.2]} 15... Be7 {[%clk 0:02:43.3]} 16. Qxd8 {[%clk 0:02:31.4]}
16... Rexd8 {[%clk 0:02:42.4]} 17. Nd5 {[%clk 0:02:28.1]} 17... Bc5 {[%clk
0:02:41.4]} 18. Rac1 {[%clk 0:02:22.9]} 18... Bd4 {[%clk 0:02:40.2]} 19. b3
{[%clk 0:02:20.8]} 19... Kf8 {[%clk 0:02:32.2]} 20. Rc4 {[%clk 0:02:09.6]} 20...
Rac8 {[%clk 0:02:23.9]} 21. Rec1 {[%clk 0:02:08.3]} 21... Rxc4 {[%clk
0:02:24.1]} 22. Rxc4 {[%clk 0:02:07.6]} 22... f5 {[%clk 0:02:24.4]} 23. Nc7
{[%clk 0:01:52.1]} 23... Kf7 {[%clk 0:02:13.3]} 24. exf5 {[%clk 0:01:44.8]}
24... Bb6 {[%clk 0:02:11.3]} 25. g3 {[%clk 0:01:04.5]} 25... Rd2 {[%clk
0:02:05.4]} 26. a4 {[%clk 0:00:42]} 26... Bxf2+ {[%clk 0:01:49.3]} 27. Kg2
{[%clk 0:00:36.7]} 27... Bb6+ {[%clk 0:01:31.2]} 28. Kh3 {[%clk 0:00:34.7]}
28... h5 {[%clk 0:01:17.8]} 29. Ne6 {[%clk 0:00:26.7]} 29... Bg1 {[%clk
0:01:10.3]} 30. Ng5+ {[%clk 0:00:25.9]} 30... Kf8 {[%clk 0:01:00.5]} 31. Nf3
{[%clk 0:00:23.1]} 31... Rd1 {[%clk 0:01:00.2]} 32. Nxg1 {[%clk 0:00:22.4]}
32... Rxg1 {[%clk 0:00:59.9]} 33. Rc7 {[%clk 0:00:22.4]} 33... e4 {[%clk
0:00:59.5]} 34. Rxb7 {[%clk 0:00:16.6]} 34... e3 {[%clk 0:00:57.4]} 35. Rb8+
{[%clk 0:00:13.4]} 35... Kf7 {[%clk 0:00:57.4]} 36. Rb7+ {[%clk 0:00:12.9]}
36... Kf6 {[%clk 0:00:57.4]} 37. Rxa7 {[%clk 0:00:05.4]} 37... e2 {[%clk
0:00:56.6]} 38. Ra6+ {[%clk 0:00:05.1]} 38... Kxf5 {[%clk 0:00:56.5]} 39. Ra5+
{[%clk 0:00:04.1]} 39... Ke4 {[%clk 0:00:55.9]} 40. Ra8 {[%clk 0:00:03]} 40...
Kd3 {[%clk 0:00:54]} 41. Rd8+ {[%clk 0:00:02.8]} 41... Kc2 {[%clk 0:00:54.3]}
42. Re8 {[%clk 0:00:02.6]} 42... e1=Q {[%clk 0:00:54.1]} 43. Rxe1 {[%clk
0:00:02.4]} 43... Rxe1 {[%clk 0:00:55]} 44. b4 {[%clk 0:00:01.7]} 44... Re4
{[%clk 0:00:54.8]} 45. a5 {[%clk 0:00:01.1]} 45... Rxb4 {[%clk 0:00:55]} 46. a6
{[%clk 0:00:01.2]} 46... Ra4 {[%clk 0:00:55.5]} 47. a7 {[%clk 0:00:01.3]} 47...
g5 {[%clk 0:00:55.5]} 0-1

[Event "Early-Titled-Tuesday-Blitz-September-05-2023"]
[Site "Chess.com"]
[Date "2023.09.05"]
[Round "4"]
[White "nss13"]
[Black "AlexandraSamaganova"]
[Result "1-0"]
[WhiteElo "2501"]
[BlackElo "2282"]
[TimeControl "180+1"]
[EndTime "8:37:44 PDT"]
[Termination "nss13 won on time"]

1. e4 {[%clk 0:02:55.6]} 1... c5 {[%clk 0:02:57.2]} 2. Nf3 {[%clk 0:02:55.5]}
2... e6 {[%clk 0:02:56.1]} 3. d4 {[%clk 0:02:55.2]} 3... cxd4 {[%clk 0:02:55.3]}
4. Nxd4 {[%clk 0:02:56.1]} 4... a6 {[%clk 0:02:52.3]} 5. c4 {[%clk 0:02:55.9]}
5... Qc7 {[%clk 0:02:51.7]} 6. Nc3 {[%clk 0:02:56.3]} 6... Nf6 {[%clk
0:02:51.3]} 7. Be2 {[%clk 0:02:56.5]} 7... b6 {[%clk 0:02:47.5]} 8. O-O {[%clk
0:02:55.9]} 8... Bb7 {[%clk 0:02:47.1]} 9. f3 {[%clk 0:02:56.2]} 9... d6 {[%clk
0:02:39.4]} 10. Be3 {[%clk 0:02:55.6]} 10... Nbd7 {[%clk 0:02:39.2]} 11. Qd2
{[%clk 0:02:55.6]} 11... Rc8 {[%clk 0:02:37.5]} 12. Rfc1 {[%clk 0:02:55.7]}
12... Be7 {[%clk 0:02:37.1]} 13. a4 {[%clk 0:02:55.9]} 13... O-O {[%clk
0:02:33.1]} 14. a5 {[%clk 0:02:56]} 14... Nc5 {[%clk 0:02:10.9]} 15. axb6 {[%clk
0:02:41.7]} 15... Qb8 {[%clk 0:01:42.5]} 16. b4 {[%clk 0:02:40.4]} 16... Ncd7
{[%clk 0:01:17.1]} 17. b5 {[%clk 0:02:13.3]} 17... Nc5 {[%clk 0:01:11]} 18. bxa6
{[%clk 0:02:04.8]} 18... Bxa6 {[%clk 0:01:04.4]} 19. Rcb1 {[%clk 0:02:01.4]}
19... Qb7 {[%clk 0:00:55.3]} 20. Na4 {[%clk 0:01:47]} 20... Nxa4 {[%clk
0:00:46.1]} 21. Rxa4 {[%clk 0:01:47.9]} 21... Ra8 {[%clk 0:00:44.4]} 22. Nb3
{[%clk 0:01:18.8]} 22... Qd7 {[%clk 0:00:38.1]} 23. Raa1 {[%clk 0:01:10.5]}
23... Rfc8 {[%clk 0:00:35.8]} 24. Kh1 {[%clk 0:01:00.9]} 24... h6 {[%clk
0:00:34.8]} 25. Bf1 {[%clk 0:00:59.1]} 25... Bb7 {[%clk 0:00:29.5]} 26. Na5
{[%clk 0:00:57.1]} 26... d5 {[%clk 0:00:25.5]} 27. e5 {[%clk 0:00:52.5]} 27...
Ne8 {[%clk 0:00:15.4]} 28. Nxb7 {[%clk 0:00:51.6]} 28... Qxb7 {[%clk 0:00:15.1]}
29. cxd5 {[%clk 0:00:50.4]} 29... exd5 {[%clk 0:00:15.2]} 30. Rxa8 {[%clk
0:00:36.4]} 30... Rxa8 {[%clk 0:00:14.5]} 31. Bb5 {[%clk 0:00:37]} 31... f6
{[%clk 0:00:08.7]} 32. Qc2 {[%clk 0:00:26.7]} 32... Rc8 {[%clk 0:00:04.9]} 33.
Qa4 {[%clk 0:00:26.9]} 33... Kf8 {[%clk 0:00:03.8]} 34. Ba6 {[%clk 0:00:24.6]}
34... Qb8 {[%clk 0:00:04.1]} 35. Bxc8 {[%clk 0:00:23.5]} 35... Qxc8 {[%clk
0:00:05]} 36. b7 {[%clk 0:00:23.6]} 36... Qb8 {[%clk 0:00:05.4]} 37. Ba7 {[%clk
0:00:18.6]} 1-0

[Event "Early-Titled-Tuesday-Blitz-September-05-2023"]
[Site "Chess.com"]
[Date "2023.09.05"]
[Round "4"]
[White "BlitzWizard04"]
[Black "Sanan_Sjugirov"]
[Result "1/2-1/2"]
[WhiteElo "2601"]
[BlackElo "2899"]
[TimeControl "180+1"]
[EndTime "8:37:47 PDT"]
[Termination "Game drawn - insufficient material"]

1. e4 {[%clk 0:03:00.9]} 1... e5 {[%clk 0:02:58.2]} 2. Nf3 {[%clk 0:03:01.5]}
2... Nc6 {[%clk 0:02:58.4]} 3. Bc4 {[%clk 0:03:02.2]} 3... Bc5 {[%clk
0:02:57.4]} 4. d4 {[%clk 0:03:02.9]} 4... Bxd4 {[%clk 0:02:43.6]} 5. Nxd4 {[%clk
0:03:02.7]} 5... Nxd4 {[%clk 0:02:43.9]} 6. Be3 {[%clk 0:03:03.3]} 6... Ne6
{[%clk 0:02:39.9]} 7. Bxe6 {[%clk 0:03:03.8]} 7... dxe6 {[%clk 0:02:33.6]} 8.
Qh5 {[%clk 0:03:03.9]} 8... Qf6 {[%clk 0:02:21.3]} 9. Na3 {[%clk 0:02:59.6]}
9... Bd7 {[%clk 0:02:15.2]} 10. Nc4 {[%clk 0:02:52.9]} 10... Ne7 {[%clk
0:01:49.1]} 11. Qxe5 {[%clk 0:02:51.4]} 11... Qxe5 {[%clk 0:01:48.3]} 12. Nxe5
{[%clk 0:02:52.3]} 12... f6 {[%clk 0:01:46.7]} 13. Nxd7 {[%clk 0:02:51.5]} 13...
Kxd7 {[%clk 0:01:47.6]} 14. O-O-O+ {[%clk 0:02:52.1]} 14... Kc6 {[%clk
0:01:46.8]} 15. f3 {[%clk 0:02:53]} 15... b6 {[%clk 0:01:45.6]} 16. c4 {[%clk
0:02:50.1]} 16... Rad8 {[%clk 0:01:42.6]} 17. b4 {[%clk 0:02:49.5]} 17... a6
{[%clk 0:01:38.2]} 18. Kc2 {[%clk 0:02:49.9]} 18... Ng6 {[%clk 0:01:36.3]} 19.
a4 {[%clk 0:02:49.2]} 19... Nh4 {[%clk 0:01:31.5]} 20. Rhg1 {[%clk 0:02:47.2]}
20... Rxd1 {[%clk 0:01:30.5]} 21. Kxd1 {[%clk 0:02:46.8]} 21... Rd8+ {[%clk
0:01:25.7]} 22. Kc2 {[%clk 0:02:46.3]} 22... Kb7 {[%clk 0:01:21.2]} 23. Kc3
{[%clk 0:02:44.1]} 23... Ng6 {[%clk 0:01:17.5]} 24. g3 {[%clk 0:02:43.5]} 24...
Ne5 {[%clk 0:01:17.4]} 25. f4 {[%clk 0:02:41]} 25... Rd3+ {[%clk 0:01:14.4]} 26.
Kc2 {[%clk 0:02:33.1]} 26... Rxe3 {[%clk 0:01:12.9]} 27. fxe5 {[%clk 0:02:33.3]}
27... fxe5 {[%clk 0:01:02]} 28. Rf1 {[%clk 0:02:33.1]} 28... Re2+ {[%clk
0:00:47.3]} 29. Kc3 {[%clk 0:02:33.1]} 29... Rxh2 {[%clk 0:00:48.2]} 30. Rf7
{[%clk 0:02:33.5]} 30... g6 {[%clk 0:00:48.2]} 31. c5 {[%clk 0:02:30.8]} 31...
bxc5 {[%clk 0:00:47.2]} 32. bxc5 {[%clk 0:02:30.7]} 32... Rh3 {[%clk 0:00:44.5]}
33. Kc4 {[%clk 0:02:23]} 33... Rxg3 {[%clk 0:00:44]} 34. Rxh7 {[%clk 0:02:22.6]}
34... Re3 {[%clk 0:00:41]} 35. Rh4 {[%clk 0:02:22.9]} 35... g5 {[%clk
0:00:35.2]} 36. Rg4 {[%clk 0:02:21.4]} 36... Kc6 {[%clk 0:00:34.6]} 37. Kb4
{[%clk 0:02:21.5]} 37... Rd3 {[%clk 0:00:25.4]} 38. Rxg5 {[%clk 0:02:18.6]}
38... Rd4+ {[%clk 0:00:26]} 39. Ka5 {[%clk 0:02:17.9]} 39... Rxe4 {[%clk
0:00:26.6]} 40. Rg6 {[%clk 0:02:16.3]} 40... Kxc5 {[%clk 0:00:22]} 41. Rxe6
{[%clk 0:02:13.7]} 41... c6 {[%clk 0:00:22.6]} 42. Re8 {[%clk 0:02:10.7]} 42...
Kd6 {[%clk 0:00:15.3]} 43. Rd8+ {[%clk 0:02:08.8]} 43... Kc7 {[%clk 0:00:15.4]}
44. Ra8 {[%clk 0:02:08.7]} 44... Rd4 {[%clk 0:00:11.4]} 45. Rh8 {[%clk
0:02:06.6]} 45... e4 {[%clk 0:00:10.4]} 46. Rh7+ {[%clk 0:01:57.8]} 46... Kd6
{[%clk 0:00:10.6]} 47. Rh3 {[%clk 0:01:53]} 47... Kc5 {[%clk 0:00:10.5]} 48. Ra3
{[%clk 0:01:50.2]} 48... Rd3 {[%clk 0:00:09]} 49. Ra1 {[%clk 0:01:48.8]} 49...
e3 {[%clk 0:00:09.3]} 50. Kxa6 {[%clk 0:01:47.8]} 50... e2 {[%clk 0:00:09.1]}
51. Re1 {[%clk 0:01:45.2]} 51... Rd2 {[%clk 0:00:08]} 52. a5 {[%clk 0:01:43.7]}
52... Ra2 {[%clk 0:00:08]} 53. Kb7 {[%clk 0:01:43]} 53... Rxa5 {[%clk
0:00:04.3]} 54. Rxe2 {[%clk 0:01:42.5]} 54... Kd6 {[%clk 0:00:02.5]} 55. Rd2+
{[%clk 0:01:42.4]} 55... Rd5 {[%clk 0:00:02.7]} 56. Rh2 {[%clk 0:01:42.2]} 56...
Rb5+ {[%clk 0:00:03.1]} 57. Ka6 {[%clk 0:01:41]} 57... Rb1 {[%clk 0:00:03]} 58.
Rh6+ {[%clk 0:01:39.7]} 58... Kc5 {[%clk 0:00:03.1]} 59. Rh5+ {[%clk 0:01:40.3]}
59... Kc4 {[%clk 0:00:01.9]} 60. Rh4+ {[%clk 0:01:40.3]} 60... Kd5 {[%clk
0:00:02.1]} 61. Rh5+ {[%clk 0:01:40.4]} 61... Kc4 {[%clk 0:00:02.4]} 62. Rh4+
{[%clk 0:01:40.5]} 62... Kc5 {[%clk 0:00:02.8]} 63. Rh5+ {[%clk 0:01:39]} 63...
Kd6 {[%clk 0:00:03]} 64. Rh6+ {[%clk 0:01:39.4]} 64... Kd7 {[%clk 0:00:03.5]}
65. Rh7+ {[%clk 0:01:40]} 65... Ke6 {[%clk 0:00:02.9]} 66. Rh6+ {[%clk
0:01:40.6]} 66... Kd5 {[%clk 0:00:03.6]} 67. Rh5+ {[%clk 0:01:41.1]} 67... Ke4
{[%clk 0:00:04]} 68. Rc5 {[%clk 0:01:40.8]} 68... Ra1+ {[%clk 0:00:03.9]} 69.
Kb6 {[%clk 0:01:40.8]} 69... Rb1+ {[%clk 0:00:04.6]} 70. Kxc6 {[%clk 0:01:41.4]}
70... Rb4 {[%clk 0:00:05]} 71. Kd6 {[%clk 0:01:41.1]} 71... Rd4+ {[%clk
0:00:04.8]} 72. Ke6 {[%clk 0:01:41.8]} 72... Rd3 {[%clk 0:00:05.2]} 73. Re5+
{[%clk 0:01:41.9]} 73... Kd4 {[%clk 0:00:05.6]} 74. Rd5+ {[%clk 0:01:42.6]}
74... Ke4 {[%clk 0:00:06.1]} 75. Rxd3 {[%clk 0:01:43.5]} 75... Kxd3 {[%clk
0:00:06.6]} 1/2-1/2

[Event "Early-Titled-Tuesday-Blitz-September-05-2023"]
[Site "Chess.com"]
[Date "2023.09.05"]
[Round "4"]
[White "andrzej"]
[Black "ErikRonka"]
[Result "1-0"]
[WhiteElo "2389"]
[BlackElo "2494"]
[TimeControl "180+1"]
[EndTime "8:37:52 PDT"]
[Termination "andrzej won by checkmate"]

1. e4 {[%clk 0:02:58.2]} 1... c5 {[%clk 0:02:59.8]} 2. Nf3 {[%clk 0:02:55.6]}
2... e6 {[%clk 0:02:59.4]} 3. d4 {[%clk 0:02:56.1]} 3... cxd4 {[%clk 0:03:00.3]}
4. Nxd4 {[%clk 0:02:56.9]} 4... Nf6 {[%clk 0:03:00.3]} 5. Bd3 {[%clk 0:02:56.1]}
5... Qb6 {[%clk 0:02:56.7]} 6. Nb3 {[%clk 0:02:42.1]} 6... Qc7 {[%clk
0:02:55.9]} 7. O-O {[%clk 0:02:40.8]} 7... d6 {[%clk 0:02:52.7]} 8. c4 {[%clk
0:02:38.1]} 8... g6 {[%clk 0:02:52.3]} 9. Nc3 {[%clk 0:02:30.6]} 9... a6 {[%clk
0:02:50.7]} 10. Qe2 {[%clk 0:02:28.5]} 10... Bg7 {[%clk 0:02:50.8]} 11. f4
{[%clk 0:02:28.8]} 11... Nbd7 {[%clk 0:02:47.2]} 12. Bd2 {[%clk 0:02:25.9]}
12... O-O {[%clk 0:02:46.6]} 13. Rae1 {[%clk 0:02:26.2]} 13... b6 {[%clk
0:02:22.7]} 14. e5 {[%clk 0:02:18.5]} 14... Ne8 {[%clk 0:02:22.4]} 15. Ne4
{[%clk 0:02:11.5]} 15... dxe5 {[%clk 0:02:05.1]} 16. Bb4 {[%clk 0:02:11.1]}
16... exf4 {[%clk 0:01:47]} 17. Bxf8 {[%clk 0:02:00.4]} 17... Nxf8 {[%clk
0:01:44.9]} 18. Ng5 {[%clk 0:01:45.5]} 18... Bb7 {[%clk 0:01:35.1]} 19. Be4
{[%clk 0:01:39]} 19... Bxe4 {[%clk 0:01:30.7]} 20. Qxe4 {[%clk 0:01:38.7]} 20...
e5 {[%clk 0:01:25.7]} 21. Qxa8 {[%clk 0:01:36.7]} 21... Qe7 {[%clk 0:01:13.8]}
22. Ne4 {[%clk 0:01:24.3]} 22... a5 {[%clk 0:01:13.5]} 23. c5 {[%clk 0:01:18.6]}
23... bxc5 {[%clk 0:01:12.9]} 24. Qxa5 {[%clk 0:01:14.4]} 24... h6 {[%clk
0:01:11.4]} 25. Qxc5 {[%clk 0:01:11.2]} 25... Qb7 {[%clk 0:01:11.8]} 26. Nd6
{[%clk 0:01:08.2]} 26... Nxd6 {[%clk 0:01:06.3]} 27. Qxd6 {[%clk 0:01:08.2]}
27... Ne6 {[%clk 0:01:07.2]} 28. Rxe5 {[%clk 0:00:49]} 28... Bxe5 {[%clk
0:01:05.8]} 29. Qxe5 {[%clk 0:00:48.9]} 29... g5 {[%clk 0:01:06.7]} 30. Qf6
{[%clk 0:00:45.5]} 30... Qb6+ {[%clk 0:01:02.9]} 31. Kh1 {[%clk 0:00:45.5]}
31... Qe3 {[%clk 0:01:03.5]} 32. Qc3 {[%clk 0:00:40.8]} 32... Qe2 {[%clk
0:01:02.9]} 33. Re1 {[%clk 0:00:40.4]} 33... Qf2 {[%clk 0:01:02.6]} 34. Qd2
{[%clk 0:00:33.1]} 34... Qb6 {[%clk 0:01:01.2]} 35. h3 {[%clk 0:00:28.5]} 35...
Qc6 {[%clk 0:00:59.7]} 36. Nd4 {[%clk 0:00:22.9]} 36... Qd5 {[%clk 0:00:59.3]}
37. Nf3 {[%clk 0:00:22.8]} 37... Qxa2 {[%clk 0:00:58.1]} 38. Qe2 {[%clk
0:00:20.4]} 38... Qb3 {[%clk 0:00:57.4]} 39. Rd1 {[%clk 0:00:19.8]} 39... Kh7
{[%clk 0:00:55.5]} 40. Qd3+ {[%clk 0:00:18.4]} 40... Qxd3 {[%clk 0:00:54.3]} 41.
Rxd3 {[%clk 0:00:19.3]} 41... Nc5 {[%clk 0:00:52.7]} 42. Rd6 {[%clk 0:00:17.9]}
42... Ne4 {[%clk 0:00:53.1]} 43. Ra6 {[%clk 0:00:17.7]} 43... f5 {[%clk
0:00:51.5]} 44. b4 {[%clk 0:00:17.4]} 44... g4 {[%clk 0:00:51.9]} 45. Ne5 {[%clk
0:00:16.3]} 45... Nf2+ {[%clk 0:00:48.1]} 46. Kg1 {[%clk 0:00:16]} 46... Ne4
{[%clk 0:00:45.6]} 47. hxg4 {[%clk 0:00:15.3]} 47... fxg4 {[%clk 0:00:45.1]} 48.
Nxg4 {[%clk 0:00:15.5]} 48... h5 {[%clk 0:00:45.5]} 49. Nf6+ {[%clk 0:00:15.5]}
49... Kg6 {[%clk 0:00:45.2]} 50. Nxe4+ {[%clk 0:00:15.5]} 50... Kf5 {[%clk
0:00:46.1]} 51. Nf2 {[%clk 0:00:15.6]} 51... f3 {[%clk 0:00:47]} 52. gxf3 {[%clk
0:00:15.7]} 52... h4 {[%clk 0:00:47.1]} 53. Kg2 {[%clk 0:00:15.8]} 53... h3+
{[%clk 0:00:48]} 54. Nxh3 {[%clk 0:00:15.9]} 54... Ke5 {[%clk 0:00:47.8]} 55.
f4+ {[%clk 0:00:16.2]} 55... Kf5 {[%clk 0:00:48.7]} 56. b5 {[%clk 0:00:15.8]}
56... Kg4 {[%clk 0:00:49.6]} 57. b6 {[%clk 0:00:15.9]} 57... Kh4 {[%clk
0:00:50.5]} 58. b7 {[%clk 0:00:16]} 58... Kg4 {[%clk 0:00:51.4]} 59. b8=Q {[%clk
0:00:15.9]} 59... Kf5 {[%clk 0:00:52.3]} 60. Qe5+ {[%clk 0:00:15.5]} 60... Kg4
{[%clk 0:00:52.4]} 61. Qg5# {[%clk 0:00:14.9]} 1-0

[Event "Early-Titled-Tuesday-Blitz-September-05-2023"]
[Site "Chess.com"]
[Date "2023.09.05"]
[Round "4"]
[White "PavelChernomordik"]
[Black "secretsuperstar7"]
[Result "0-1"]
[WhiteElo "2498"]
[BlackElo "2405"]
[TimeControl "180+1"]
[EndTime "8:37:55 PDT"]
[Termination "secretsuperstar7 won on time"]

1. e4 {[%clk 0:03:00.9]} 1... c5 {[%clk 0:02:59]} 2. Nc3 {[%clk 0:03:00.5]} 2...
a6 {[%clk 0:02:51.8]} 3. g3 {[%clk 0:02:55.4]} 3... b5 {[%clk 0:02:50.2]} 4. Bg2
{[%clk 0:02:55.3]} 4... Bb7 {[%clk 0:02:50]} 5. Qe2 {[%clk 0:02:55.1]} 5... d6
{[%clk 0:02:48.4]} 6. f4 {[%clk 0:02:54.5]} 6... Nd7 {[%clk 0:02:46.1]} 7. d3
{[%clk 0:02:50.5]} 7... g6 {[%clk 0:02:44.5]} 8. Nf3 {[%clk 0:02:47]} 8... Bg7
{[%clk 0:02:43.9]} 9. O-O {[%clk 0:02:46.5]} 9... Ngf6 {[%clk 0:02:41.6]} 10. e5
{[%clk 0:02:41.2]} 10... dxe5 {[%clk 0:02:32]} 11. fxe5 {[%clk 0:02:40.5]} 11...
Nd5 {[%clk 0:02:32]} 12. e6 {[%clk 0:02:21.7]} 12... fxe6 {[%clk 0:02:20.7]} 13.
Qxe6 {[%clk 0:02:13.4]} 13... Nxc3 {[%clk 0:01:15.9]} 14. Ng5 {[%clk 0:01:53]}
14... Bd4+ {[%clk 0:01:08.3]} 15. Kh1 {[%clk 0:01:48]} 15... Bxg2+ {[%clk
0:01:07.1]} 16. Kxg2 {[%clk 0:01:47.6]} 16... Qb6 {[%clk 0:00:58]} 17. Qf7+
{[%clk 0:01:38.7]} 17... Kd8 {[%clk 0:00:58.1]} 18. Ne6+ {[%clk 0:01:36.7]}
18... Kc8 {[%clk 0:00:57.9]} 19. Nxd4 {[%clk 0:01:13.7]} 19... cxd4 {[%clk
0:00:57]} 20. bxc3 {[%clk 0:00:53.4]} 20... Qc6+ {[%clk 0:00:51.7]} 21. Kg1
{[%clk 0:00:51.6]} 21... Rf8 {[%clk 0:00:47.6]} 22. Qxe7 {[%clk 0:00:50]} 22...
Rxf1+ {[%clk 0:00:42.6]} 23. Kxf1 {[%clk 0:00:49.8]} 23... Qh1+ {[%clk
0:00:40.9]} 24. Kf2 {[%clk 0:00:47.3]} 24... Qxh2+ {[%clk 0:00:40.2]} 25. Kf3
{[%clk 0:00:43.9]} 25... Qh1+ {[%clk 0:00:30.1]} 26. Kf4 {[%clk 0:00:29.5]}
26... Qf1+ {[%clk 0:00:20.7]} 27. Kg5 {[%clk 0:00:26.6]} 27... Qf5+ {[%clk
0:00:14.6]} 28. Kh6 {[%clk 0:00:25.4]} 28... Nf6 {[%clk 0:00:12.1]} 29. Qf8+
{[%clk 0:00:15.4]} 29... Kb7 {[%clk 0:00:11.8]} 30. Qe7+ {[%clk 0:00:11.2]}
30... Kc6 {[%clk 0:00:11.6]} 31. Kg7 {[%clk 0:00:04.6]} 31... Nh5+ {[%clk
0:00:11.2]} 32. Kh6 {[%clk 0:00:03.8]} 32... Nf6 {[%clk 0:00:10.9]} 33. Kg7
{[%clk 0:00:03]} 33... Rg8+ {[%clk 0:00:10.4]} 34. Kf7 {[%clk 0:00:01.6]} 34...
Nd5+ {[%clk 0:00:10.4]} 35. Kxg8 {[%clk 0:00:01.5]} 35... Nxe7+ {[%clk
0:00:11.3]} 36. Kxh7 {[%clk 0:00:01.4]} 36... Qf7+ {[%clk 0:00:11]} 0-1

[Event "Early-Titled-Tuesday-Blitz-September-05-2023"]
[Site "Chess.com"]
[Date "2023.09.05"]
[Round "4"]
[White "KVAIDAN"]
[Black "leandrojimenez"]
[Result "1-0"]
[WhiteElo "2218"]
[BlackElo "2447"]
[TimeControl "180+1"]
[EndTime "8:37:55 PDT"]
[Termination "KVAIDAN won on time"]

1. f4 {[%clk 0:02:32.7]} 1... d5 {[%clk 0:02:55.5]} 2. Nf3 {[%clk 0:02:26.5]}
2... Nf6 {[%clk 0:02:54.4]} 3. e3 {[%clk 0:02:27]} 3... Bg4 {[%clk 0:02:42.1]}
4. h3 {[%clk 0:02:26.3]} 4... Bxf3 {[%clk 0:02:41.9]} 5. Qxf3 {[%clk 0:02:26.3]}
5... e6 {[%clk 0:02:42.1]} 6. b3 {[%clk 0:02:26.1]} 6... c5 {[%clk 0:02:37.9]}
7. Bb2 {[%clk 0:02:26.4]} 7... Nc6 {[%clk 0:02:38]} 8. Bb5 {[%clk 0:02:25.4]}
8... Rc8 {[%clk 0:02:33.4]} 9. O-O {[%clk 0:02:24.1]} 9... Be7 {[%clk
0:02:31.1]} 10. Nc3 {[%clk 0:02:16.1]} 10... O-O {[%clk 0:02:26]} 11. g4 {[%clk
0:02:14]} 11... a6 {[%clk 0:02:19.8]} 12. Be2 {[%clk 0:02:11.8]} 12... d4 {[%clk
0:02:19.4]} 13. Nd1 {[%clk 0:02:09.2]} 13... Nb4 {[%clk 0:02:14.7]} 14. g5
{[%clk 0:02:09.1]} 14... Ne8 {[%clk 0:01:48.2]} 15. Nf2 {[%clk 0:01:35]} 15...
Nxc2 {[%clk 0:01:45.3]} 16. Rac1 {[%clk 0:01:34.7]} 16... d3 {[%clk 0:01:25.9]}
17. Bxd3 {[%clk 0:01:30.2]} 17... Nb4 {[%clk 0:01:25.2]} 18. Bb1 {[%clk
0:01:22.5]} 18... Qxd2 {[%clk 0:01:12.2]} 19. Bc3 {[%clk 0:01:22.5]} 19... Qd5
{[%clk 0:01:12.5]} 20. e4 {[%clk 0:01:21.8]} 20... Qd7 {[%clk 0:01:10.6]} 21. a3
{[%clk 0:01:21.3]} 21... Nc6 {[%clk 0:01:08.7]} 22. Rfd1 {[%clk 0:01:22]} 22...
Nd4 {[%clk 0:01:08.5]} 23. Qd3 {[%clk 0:01:22.1]} 23... f5 {[%clk 0:00:48.4]}
24. e5 {[%clk 0:01:05.7]} 24... g6 {[%clk 0:00:40.6]} 25. Bb2 {[%clk 0:00:59.7]}
25... Ng7 {[%clk 0:00:35.3]} 26. b4 {[%clk 0:00:50.5]} 26... Nh5 {[%clk
0:00:19.8]} 27. bxc5 {[%clk 0:00:25.9]} 27... Nxf4 {[%clk 0:00:19.8]} 28. Qe3
{[%clk 0:00:19.5]} 28... Nfe2+ {[%clk 0:00:18.4]} 29. Kh2 {[%clk 0:00:17.1]}
29... Nxc1 {[%clk 0:00:18.4]} 30. Bxd4 {[%clk 0:00:11]} 30... Rfd8 {[%clk
0:00:15]} 31. Ba2 {[%clk 0:00:09.2]} 31... Nxa2 {[%clk 0:00:13.1]} 32. h4 {[%clk
0:00:07.4]} 32... Bxc5 {[%clk 0:00:10]} 33. Bxc5 {[%clk 0:00:07.7]} 33... Qxd1
{[%clk 0:00:10]} 34. Nxd1 {[%clk 0:00:07.5]} 34... Rxd1 {[%clk 0:00:07.5]} 35.
Qb3 {[%clk 0:00:06]} 35... Rd5 {[%clk 0:00:04.3]} 36. Bd6 {[%clk 0:00:04.6]}
36... b5 {[%clk 0:00:01.7]} 37. Qxa2 {[%clk 0:00:04.3]} 1-0